Workbook

Sheet 21
B2: Mercredi 21 juillet
B3: Référence | C3: Nbre palettes | D3: Quantité (colis) | E3: Traçabilité
B4: CEA 250x12 ZR | C4: 2 | D4: =IF(B4="","",C4*VLOOKUP(DétailsFacture[[#This Row],[Référence]],Matrice!A:B,2,FALSE)) -> 256 | E4: 16629102
B5: CEA 200x20 0,99€ | C5: 12 | D5: =IF(B5="","",C5*VLOOKUP(DétailsFacture[[#This Row],[Référence]],Matrice!A:B,2,FALSE)) -> 1296 | E5: 16629208
B6: CEA Panaché 250x12 PDP | C6: 1 | D6: =IF(B6="","",C6*VLOOKUP(DétailsFacture[[#This Row],[Référence]],Matrice!A:B,2,FALSE)) -> 128 | E6: 16629105
B7: CEA 500x10 ZR | C7: 5 | D7: =IF(B7="","",C7*VLOOKUP(DétailsFacture[[#This Row],[Référence]],Matrice!A:B,2,FALSE)) -> 360 | E7: 16629102
B8: CEA 1kg compléxé | C8: 4 | D8: =IF(B8="","",C8*VLOOKUP(DétailsFacture[[#This Row],[Référence]],Matrice!A:B,2,FALSE)) -> 1600 | E8: 16629102
B9: CEA 1kg compléxé LIDL | C9: 2 | D9: =IF(B9="","",C9*VLOOKUP(DétailsFacture[[#This Row],[Référence]],Matrice!A:B,2,FALSE)) -> 960 | E9: 16629202
B10: GRP RGL Extra 10kg 1/2 coupe | C10: 4 | D10: =IF(B10="","",C10*VLOOKUP(DétailsFacture[[#This Row],[Référence]],Matrice!A:B,2,FALSE)) -> 224 | E10: 16629320
B11: GRP RGL Extra 10kg | C11: 12 | D11: =IF(B11="","",C11*VLOOKUP(DétailsFacture[[#This Row],[Référence]],Matrice!A:B,2,FALSE)) -> 672 | E11: 16629320
B12: CER Mélangées 350x10 ZR 2€50 | C12: 4 | D12: =IF(B12="","",C12*VLOOKUP(DétailsFacture[[#This Row],[Référence]],Matrice!A:B,2,FALSE)) -> 288 | E12: 16629106
B13: CER Mélangées 1kg compléxé LIDL | C13: 3 | D13: =IF(B13="","",C13*VLOOKUP(DétailsFacture[[#This Row],[Référence]],Matrice!A:B,2,FALSE)) -> 1440 | E13: 16629106
B14: CER Mélangées 1kg compléxé | C14: 2 | D14: =IF(B14="","",C14*VLOOKUP(DétailsFacture[[#This Row],[Référence]],Matrice!A:B,2,FALSE)) -> 800 | E14: 16629106
B15: CER 4Kg Industrie 20-30 mm | C15: 1 | D15: =IF(B15="","",C15*VLOOKUP(DétailsFacture[[#This Row],[Référence]],Matrice!A:B,2,FALSE)) -> 144 | E15: 16629301
D16: =IF(B16="","",C16*VLOOKUP(DétailsFacture[[#This Row],[Référence]],Matrice!A:B,2,FALSE)) -> 
D17: =IF(B17="","",C17*VLOOKUP(DétailsFacture[[#This Row],[Référence]],Matrice!A:B,2,FALSE)) -> 
D18: =IF(B18="","",C18*VLOOKUP(DétailsFacture[[#This Row],[Référence]],Matrice!A:B,2,FALSE)) -> 
D19: =IF(B19="","",C19*VLOOKUP(DétailsFacture[[#This Row],[Référence]],Matrice!A:B,2,FALSE)) -> 
D20: =IF(B20="","",C20*VLOOKUP(DétailsFacture[[#This Row],[Référence]],Matrice!A:B,2,FALSE)) -> 
D21: =IF(B21="","",C21*VLOOKUP(DétailsFacture[[#This Row],[Référence]],Matrice!A:B,2,FALSE)) -> 
D22: =IF(B22="","",C22*VLOOKUP(DétailsFacture[[#This Row],[Référence]],Matrice!A:B,2,FALSE)) -> 
D23: =IF(B23="","",C23*VLOOKUP(DétailsFacture[[#This Row],[Référence]],Matrice!A:B,2,FALSE)) -> 
D24: =IF(B24="","",C24*VLOOKUP(DétailsFacture[[#This Row],[Référence]],Matrice!A:B,2,FALSE)) -> 
D25: =IF(B25="","",C25*VLOOKUP(DétailsFacture[[#This Row],[Référence]],Matrice!A:B,2,FALSE)) -> 
D26: =IF(B26="","",C26*VLOOKUP(DétailsFacture[[#This Row],[Référence]],Matrice!A:B,2,FALSE)) -> 
D27: =IF(B27="","",C27*VLOOKUP(DétailsFacture[[#This Row],[Référence]],Matrice!A:B,2,FALSE)) -> 
D28: =IF(B28="","",C28*VLOOKUP(DétailsFacture[[#This Row],[Référence]],Matrice!A:B,2,FALSE)) -> 
D29: =IF(B29="","",C29*VLOOKUP(DétailsFacture[[#This Row],[Référence]],Matrice!A:B,2,FALSE)) -> 
D30: =IF(B30="","",C30*VLOOKUP(DétailsFacture[[#This Row],[Référence]],Matrice!A:B,2,FALSE)) -> 
D31: =IF(B31="","",C31*VLOOKUP(DétailsFacture[[#This Row],[Référence]],Matrice!A:B,2,FALSE)) -> 
D32: =IF(B32="","",C32*VLOOKUP(DétailsFacture[[#This Row],[Référence]],Matrice!A:B,2,FALSE)) -> 
D33: =IF(B33="","",C33*VLOOKUP(DétailsFacture[[#This Row],[Référence]],Matrice!A:B,2,FALSE)) -> 
D34: =IF(B34="","",C34*VLOOKUP(DétailsFacture[[#This Row],[Référence]],Matrice!A:B,2,FALSE)) -> 
D35: =IF(B35="","",C35*VLOOKUP(DétailsFacture[[#This Row],[Référence]],Matrice!A:B,2,FALSE)) -> 
D36: =IF(B36="","",C36*VLOOKUP(DétailsFacture[[#This Row],[Référence]],Matrice!A:B,2,FALSE)) -> 
D37: =IF(B37="","",C37*VLOOKUP(DétailsFacture[[#This Row],[Référence]],Matrice!A:B,2,FALSE)) -> 
D38: =IF(B38="","",C38*VLOOKUP(DétailsFacture[[#This Row],[Référence]],Matrice!A:B,2,FALSE)) -> 
D39: =IF(B39="","",C39*VLOOKUP(DétailsFacture[[#This Row],[Référence]],Matrice!A:B,2,FALSE)) -> 
D40: =IF(B40="","",C40*VLOOKUP(DétailsFacture[[#This Row],[Référence]],Matrice!A:B,2,FALSE)) -> 
D41: =IF(B41="","",C41*VLOOKUP(DétailsFacture[[#This Row],[Référence]],Matrice!A:B,2,FALSE)) -> 
D42: =IF(B42="","",C42*VLOOKUP(DétailsFacture[[#This Row],[Référence]],Matrice!A:B,2,FALSE)) -> 
D43: =IF(B43="","",C43*VLOOKUP(DétailsFacture[[#This Row],[Référence]],Matrice!A:B,2,FALSE)) -> 
D44: =IF(B44="","",C44*VLOOKUP(DétailsFacture[[#This Row],[Référence]],Matrice!A:B,2,FALSE)) -> 
D45: =IF(B45="","",C45*VLOOKUP(DétailsFacture[[#This Row],[Référence]],Matrice!A:B,2,FALSE)) -> 
D46: =IF(B46="","",C46*VLOOKUP(DétailsFacture[[#This Row],[Référence]],Matrice!A:B,2,FALSE)) -> 
D47: =IF(B47="","",C47*VLOOKUP(DétailsFacture[[#This Row],[Référence]],Matrice!A:B,2,FALSE)) -> 
D48: =IF(B48="","",C48*VLOOKUP(DétailsFacture[[#This Row],[Référence]],Matrice!A:B,2,FALSE)) -> 
D49: =IF(B49="","",C49*VLOOKUP(DétailsFacture[[#This Row],[Référence]],Matrice!A:B,2,FALSE)) -> 
D50: =IF(B50="","",C50*VLOOKUP(DétailsFacture[[#This Row],[Référence]],Matrice!A:B,2,FALSE)) -> 
D51: =IF(B51="","",C51*VLOOKUP(DétailsFacture[[#This Row],[Référence]],Matrice!A:B,2,FALSE)) -> 
D52: =IF(B52="","",C52*VLOOKUP(DétailsFacture[[#This Row],[Référence]],Matrice!A:B,2,FALSE)) -> 
D53: =IF(B53="","",C53*VLOOKUP(DétailsFacture[[#This Row],[Référence]],Matrice!A:B,2,FALSE)) -> 
D54: =IF(B54="","",C54*VLOOKUP(DétailsFacture[[#This Row],[Référence]],Matrice!A:B,2,FALSE)) -> 
D55: =IF(B55="","",C55*VLOOKUP(DétailsFacture[[#This Row],[Référence]],Matrice!A:B,2,FALSE)) -> 
D56: =IF(B56="","",C56*VLOOKUP(DétailsFacture[[#This Row],[Référence]],Matrice!A:B,2,FALSE)) -> 
D57: =IF(B57="","",C57*VLOOKUP(DétailsFacture[[#This Row],[Référence]],Matrice!A:B,2,FALSE)) -> 
D58: =IF(B58="","",C58*VLOOKUP(DétailsFacture[[#This Row],[Référence]],Matrice!A:B,2,FALSE)) -> 
D59: =IF(B59="","",C59*VLOOKUP(DétailsFacture[[#This Row],[Référence]],Matrice!A:B,2,FALSE)) -> 
D60: =IF(B60="","",C60*VLOOKUP(DétailsFacture[[#This Row],[Référence]],Matrice!A:B,2,FALSE)) -> 
D61: =IF(B61="","",C61*VLOOKUP(DétailsFacture[[#This Row],[Référence]],Matrice!A:B,2,FALSE)) -> 
D62: =IF(B62="","",C62*VLOOKUP(DétailsFacture[[#This Row],[Référence]],Matrice!A:B,2,FALSE)) -> 
D63: =IF(B63="","",C63*VLOOKUP(DétailsFacture[[#This Row],[Référence]],Matrice!A:B,2,FALSE)) -> 
D64: =IF(B64="","",C64*VLOOKUP(DétailsFacture[[#This Row],[Référence]],Matrice!A:B,2,FALSE)) -> 
D65: =IF(B65="","",C65*VLOOKUP(DétailsFacture[[#This Row],[Référence]],Matrice!A:B,2,FALSE)) -> 
D66: =IF(B66="","",C66*VLOOKUP(DétailsFacture[[#This Row],[Référence]],Matrice!A:B,2,FALSE)) -> 
D67: =IF(B67="","",C67*VLOOKUP(DétailsFacture[[#This Row],[Référence]],Matrice!A:B,2,FALSE)) -> 
D68: =IF(B68="","",C68*VLOOKUP(DétailsFacture[[#This Row],[Référence]],Matrice!A:B,2,FALSE)) -> 
D69: =IF(B69="","",C69*VLOOKUP(DétailsFacture[[#This Row],[Référence]],Matrice!A:B,2,FALSE)) -> 
D70: =IF(B70="","",C70*VLOOKUP(DétailsFacture[[#This Row],[Référence]],Matrice!A:B,2,FALSE)) -> 
D71: =IF(B71="","",C71*VLOOKUP(DétailsFacture[[#This Row],[Référence]],Matrice!A:B,2,FALSE)) -> 
D72: =IF(B72="","",C72*VLOOKUP(DétailsFacture[[#This Row],[Référence]],Matrice!A:B,2,FALSE)) -> 
D73: =IF(B73="","",C73*VLOOKUP(DétailsFacture[[#This Row],[Référence]],Matrice!A:B,2,FALSE)) -> 
D74: =IF(B74="","",C74*VLOOKUP(DétailsFacture[[#This Row],[Référence]],Matrice!A:B,2,FALSE)) -> 
D75: =IF(B75="","",C75*VLOOKUP(DétailsFacture[[#This Row],[Référence]],Matrice!A:B,2,FALSE)) -> 
D76: =IF(B76="","",C76*VLOOKUP(DétailsFacture[[#This Row],[Référence]],Matrice!A:B,2,FALSE)) -> 
D77: =IF(B77="","",C77*VLOOKUP(DétailsFacture[[#This Row],[Référence]],Matrice!A:B,2,FALSE)) -> 
D78: =IF(B78="","",C78*VLOOKUP(DétailsFacture[[#This Row],[Référence]],Matrice!A:B,2,FALSE)) -> 
D79: =IF(B79="","",C79*VLOOKUP(DétailsFacture[[#This Row],[Référence]],Matrice!A:B,2,FALSE)) -> 
D80: =IF(B80="","",C80*VLOOKUP(DétailsFacture[[#This Row],[Référence]],Matrice!A:B,2,FALSE)) -> 
D81: =IF(B81="","",C81*VLOOKUP(DétailsFacture[[#This Row],[Référence]],Matrice!A:B,2,FALSE)) -> 
D82: =IF(B82="","",C82*VLOOKUP(DétailsFacture[[#This Row],[Référence]],Matrice!A:B,2,FALSE)) -> 
D83: =IF(B83="","",C83*VLOOKUP(DétailsFacture[[#This Row],[Référence]],Matrice!A:B,2,FALSE)) -> 
D84: =IF(B84="","",C84*VLOOKUP(DétailsFacture[[#This Row],[Référence]],Matrice!A:B,2,FALSE)) -> 
D85: =IF(B85="","",C85*VLOOKUP(DétailsFacture[[#This Row],[Référence]],Matrice!A:B,2,FALSE)) -> 

Sheet 22
B2: Jeudi 22 juillet
B3: Référence | C3: Nbre palettes | D3: Quantité (colis) | E3: Traçabilité
B4: CEA 250x12 ZR | C4: 2 | D4: =IF(B4="","",C4*VLOOKUP(DétailsFacture6[[#This Row],[Référence]],Matrice!A:B,2,FALSE)) -> 256 | E4: 16629102
B5: CEA 200x20 0,99€ | C5: 12 | D5: =IF(B5="","",C5*VLOOKUP(DétailsFacture6[[#This Row],[Référence]],Matrice!A:B,2,FALSE)) -> 1296 | E5: 16629208
B6: CEA Panaché 250x12 PDP | C6: 1 | D6: =IF(B6="","",C6*VLOOKUP(DétailsFacture6[[#This Row],[Référence]],Matrice!A:B,2,FALSE)) -> 128 | E6: 16629105
B7: CEA 500x10 ZR | C7: 5 | D7: =IF(B7="","",C7*VLOOKUP(DétailsFacture6[[#This Row],[Référence]],Matrice!A:B,2,FALSE)) -> 360 | E7: 16629102
B8: CEA 1kg compléxé | C8: 4 | D8: =IF(B8="","",C8*VLOOKUP(DétailsFacture6[[#This Row],[Référence]],Matrice!A:B,2,FALSE)) -> 1600 | E8: 16629102
B9: CEA 1kg compléxé LIDL | C9: 2 | D9: =IF(B9="","",C9*VLOOKUP(DétailsFacture6[[#This Row],[Référence]],Matrice!A:B,2,FALSE)) -> 960 | E9: 16629202
B10: GRP RGL Extra 10kg 1/2 coupe | C10: 4 | D10: =IF(B10="","",C10*VLOOKUP(DétailsFacture6[[#This Row],[Référence]],Matrice!A:B,2,FALSE)) -> 224 | E10: 16629320
B11: GRP RGL Extra 10kg | C11: 12 | D11: =IF(B11="","",C11*VLOOKUP(DétailsFacture6[[#This Row],[Référence]],Matrice!A:B,2,FALSE)) -> 672 | E11: 16629320
B12: CER Mélangées 350x10 ZR 2€50 | C12: 4 | D12: =IF(B12="","",C12*VLOOKUP(DétailsFacture6[[#This Row],[Référence]],Matrice!A:B,2,FALSE)) -> 288 | E12: 16629106
B13: CER Mélangées 1kg compléxé LIDL | C13: 3 | D13: =IF(B13="","",C13*VLOOKUP(DétailsFacture6[[#This Row],[Référence]],Matrice!A:B,2,FALSE)) -> 1440 | E13: 16629106
B14: CER Mélangées 1kg compléxé | C14: 2 | D14: =IF(B14="","",C14*VLOOKUP(DétailsFacture6[[#This Row],[Référence]],Matrice!A:B,2,FALSE)) -> 800 | E14: 16629106
B15: CER 4Kg Industrie 20-30 mm | C15: 1 | D15: =IF(B15="","",C15*VLOOKUP(DétailsFacture6[[#This Row],[Référence]],Matrice!A:B,2,FALSE)) -> 144 | E15: 16629301
D16: =IF(B16="","",C16*VLOOKUP(DétailsFacture6[[#This Row],[Référence]],Matrice!A:B,2,FALSE)) -> 
D17: =IF(B17="","",C17*VLOOKUP(DétailsFacture6[[#This Row],[Référence]],Matrice!A:B,2,FALSE)) -> 
D18: =IF(B18="","",C18*VLOOKUP(DétailsFacture6[[#This Row],[Référence]],Matrice!A:B,2,FALSE)) -> 
D19: =IF(B19="","",C19*VLOOKUP(DétailsFacture6[[#This Row],[Référence]],Matrice!A:B,2,FALSE)) -> 
D20: =IF(B20="","",C20*VLOOKUP(DétailsFacture6[[#This Row],[Référence]],Matrice!A:B,2,FALSE)) -> 
D21: =IF(B21="","",C21*VLOOKUP(DétailsFacture6[[#This Row],[Référence]],Matrice!A:B,2,FALSE)) -> 
D22: =IF(B22="","",C22*VLOOKUP(DétailsFacture6[[#This Row],[Référence]],Matrice!A:B,2,FALSE)) -> 
D23: =IF(B23="","",C23*VLOOKUP(DétailsFacture6[[#This Row],[Référence]],Matrice!A:B,2,FALSE)) -> 
D24: =IF(B24="","",C24*VLOOKUP(DétailsFacture6[[#This Row],[Référence]],Matrice!A:B,2,FALSE)) -> 
D25: =IF(B25="","",C25*VLOOKUP(DétailsFacture6[[#This Row],[Référence]],Matrice!A:B,2,FALSE)) -> 
D26: =IF(B26="","",C26*VLOOKUP(DétailsFacture6[[#This Row],[Référence]],Matrice!A:B,2,FALSE)) -> 
D27: =IF(B27="","",C27*VLOOKUP(DétailsFacture6[[#This Row],[Référence]],Matrice!A:B,2,FALSE)) -> 
D28: =IF(B28="","",C28*VLOOKUP(DétailsFacture6[[#This Row],[Référence]],Matrice!A:B,2,FALSE)) -> 
D29: =IF(B29="","",C29*VLOOKUP(DétailsFacture6[[#This Row],[Référence]],Matrice!A:B,2,FALSE)) -> 
D30: =IF(B30="","",C30*VLOOKUP(DétailsFacture6[[#This Row],[Référence]],Matrice!A:B,2,FALSE)) -> 
D31: =IF(B31="","",C31*VLOOKUP(DétailsFacture6[[#This Row],[Référence]],Matrice!A:B,2,FALSE)) -> 
D32: =IF(B32="","",C32*VLOOKUP(DétailsFacture6[[#This Row],[Référence]],Matrice!A:B,2,FALSE)) -> 
D33: =IF(B33="","",C33*VLOOKUP(DétailsFacture6[[#This Row],[Référence]],Matrice!A:B,2,FALSE)) -> 
D34: =IF(B34="","",C34*VLOOKUP(DétailsFacture6[[#This Row],[Référence]],Matrice!A:B,2,FALSE)) -> 
D35: =IF(B35="","",C35*VLOOKUP(DétailsFacture6[[#This Row],[Référence]],Matrice!A:B,2,FALSE)) -> 
D36: =IF(B36="","",C36*VLOOKUP(DétailsFacture6[[#This Row],[Référence]],Matrice!A:B,2,FALSE)) -> 
D37: =IF(B37="","",C37*VLOOKUP(DétailsFacture6[[#This Row],[Référence]],Matrice!A:B,2,FALSE)) -> 
D38: =IF(B38="","",C38*VLOOKUP(DétailsFacture6[[#This Row],[Référence]],Matrice!A:B,2,FALSE)) -> 
D39: =IF(B39="","",C39*VLOOKUP(DétailsFacture6[[#This Row],[Référence]],Matrice!A:B,2,FALSE)) -> 
D40: =IF(B40="","",C40*VLOOKUP(DétailsFacture6[[#This Row],[Référence]],Matrice!A:B,2,FALSE)) -> 
D41: =IF(B41="","",C41*VLOOKUP(DétailsFacture6[[#This Row],[Référence]],Matrice!A:B,2,FALSE)) -> 
D42: =IF(B42="","",C42*VLOOKUP(DétailsFacture6[[#This Row],[Référence]],Matrice!A:B,2,FALSE)) -> 
D43: =IF(B43="","",C43*VLOOKUP(DétailsFacture6[[#This Row],[Référence]],Matrice!A:B,2,FALSE)) -> 
D44: =IF(B44="","",C44*VLOOKUP(DétailsFacture6[[#This Row],[Référence]],Matrice!A:B,2,FALSE)) -> 
D45: =IF(B45="","",C45*VLOOKUP(DétailsFacture6[[#This Row],[Référence]],Matrice!A:B,2,FALSE)) -> 
D46: =IF(B46="","",C46*VLOOKUP(DétailsFacture6[[#This Row],[Référence]],Matrice!A:B,2,FALSE)) -> 
D47: =IF(B47="","",C47*VLOOKUP(DétailsFacture6[[#This Row],[Référence]],Matrice!A:B,2,FALSE)) -> 
D48: =IF(B48="","",C48*VLOOKUP(DétailsFacture6[[#This Row],[Référence]],Matrice!A:B,2,FALSE)) -> 
D49: =IF(B49="","",C49*VLOOKUP(DétailsFacture6[[#This Row],[Référence]],Matrice!A:B,2,FALSE)) -> 
D50: =IF(B50="","",C50*VLOOKUP(DétailsFacture6[[#This Row],[Référence]],Matrice!A:B,2,FALSE)) -> 
D51: =IF(B51="","",C51*VLOOKUP(DétailsFacture6[[#This Row],[Référence]],Matrice!A:B,2,FALSE)) -> 
D52: =IF(B52="","",C52*VLOOKUP(DétailsFacture6[[#This Row],[Référence]],Matrice!A:B,2,FALSE)) -> 
D53: =IF(B53="","",C53*VLOOKUP(DétailsFacture6[[#This Row],[Référence]],Matrice!A:B,2,FALSE)) -> 
D54: =IF(B54="","",C54*VLOOKUP(DétailsFacture6[[#This Row],[Référence]],Matrice!A:B,2,FALSE)) -> 
D55: =IF(B55="","",C55*VLOOKUP(DétailsFacture6[[#This Row],[Référence]],Matrice!A:B,2,FALSE)) -> 
D56: =IF(B56="","",C56*VLOOKUP(DétailsFacture6[[#This Row],[Référence]],Matrice!A:B,2,FALSE)) -> 
D57: =IF(B57="","",C57*VLOOKUP(DétailsFacture6[[#This Row],[Référence]],Matrice!A:B,2,FALSE)) -> 
D58: =IF(B58="","",C58*VLOOKUP(DétailsFacture6[[#This Row],[Référence]],Matrice!A:B,2,FALSE)) -> 
D59: =IF(B59="","",C59*VLOOKUP(DétailsFacture6[[#This Row],[Référence]],Matrice!A:B,2,FALSE)) -> 
D60: =IF(B60="","",C60*VLOOKUP(DétailsFacture6[[#This Row],[Référence]],Matrice!A:B,2,FALSE)) -> 
D61: =IF(B61="","",C61*VLOOKUP(DétailsFacture6[[#This Row],[Référence]],Matrice!A:B,2,FALSE)) -> 
D62: =IF(B62="","",C62*VLOOKUP(DétailsFacture6[[#This Row],[Référence]],Matrice!A:B,2,FALSE)) -> 
D63: =IF(B63="","",C63*VLOOKUP(DétailsFacture6[[#This Row],[Référence]],Matrice!A:B,2,FALSE)) -> 
D64: =IF(B64="","",C64*VLOOKUP(DétailsFacture6[[#This Row],[Référence]],Matrice!A:B,2,FALSE)) -> 
D65: =IF(B65="","",C65*VLOOKUP(DétailsFacture6[[#This Row],[Référence]],Matrice!A:B,2,FALSE)) -> 
D66: =IF(B66="","",C66*VLOOKUP(DétailsFacture6[[#This Row],[Référence]],Matrice!A:B,2,FALSE)) -> 
D67: =IF(B67="","",C67*VLOOKUP(DétailsFacture6[[#This Row],[Référence]],Matrice!A:B,2,FALSE)) -> 
D68: =IF(B68="","",C68*VLOOKUP(DétailsFacture6[[#This Row],[Référence]],Matrice!A:B,2,FALSE)) -> 
D69: =IF(B69="","",C69*VLOOKUP(DétailsFacture6[[#This Row],[Référence]],Matrice!A:B,2,FALSE)) -> 
D70: =IF(B70="","",C70*VLOOKUP(DétailsFacture6[[#This Row],[Référence]],Matrice!A:B,2,FALSE)) -> 
D71: =IF(B71="","",C71*VLOOKUP(DétailsFacture6[[#This Row],[Référence]],Matrice!A:B,2,FALSE)) -> 
D72: =IF(B72="","",C72*VLOOKUP(DétailsFacture6[[#This Row],[Référence]],Matrice!A:B,2,FALSE)) -> 
D73: =IF(B73="","",C73*VLOOKUP(DétailsFacture6[[#This Row],[Référence]],Matrice!A:B,2,FALSE)) -> 
D74: =IF(B74="","",C74*VLOOKUP(DétailsFacture6[[#This Row],[Référence]],Matrice!A:B,2,FALSE)) -> 
D75: =IF(B75="","",C75*VLOOKUP(DétailsFacture6[[#This Row],[Référence]],Matrice!A:B,2,FALSE)) -> 
D76: =IF(B76="","",C76*VLOOKUP(DétailsFacture6[[#This Row],[Référence]],Matrice!A:B,2,FALSE)) -> 
D77: =IF(B77="","",C77*VLOOKUP(DétailsFacture6[[#This Row],[Référence]],Matrice!A:B,2,FALSE)) -> 
D78: =IF(B78="","",C78*VLOOKUP(DétailsFacture6[[#This Row],[Référence]],Matrice!A:B,2,FALSE)) -> 
D79: =IF(B79="","",C79*VLOOKUP(DétailsFacture6[[#This Row],[Référence]],Matrice!A:B,2,FALSE)) -> 
D80: =IF(B80="","",C80*VLOOKUP(DétailsFacture6[[#This Row],[Référence]],Matrice!A:B,2,FALSE)) -> 
D81: =IF(B81="","",C81*VLOOKUP(DétailsFacture6[[#This Row],[Référence]],Matrice!A:B,2,FALSE)) -> 
D82: =IF(B82="","",C82*VLOOKUP(DétailsFacture6[[#This Row],[Référence]],Matrice!A:B,2,FALSE)) -> 
D83: =IF(B83="","",C83*VLOOKUP(DétailsFacture6[[#This Row],[Référence]],Matrice!A:B,2,FALSE)) -> 
D84: =IF(B84="","",C84*VLOOKUP(DétailsFacture6[[#This Row],[Référence]],Matrice!A:B,2,FALSE)) -> 
D85: =IF(B85="","",C85*VLOOKUP(DétailsFacture6[[#This Row],[Référence]],Matrice!A:B,2,FALSE)) -> 

Sheet 23
B2: Vendredi 23 juillet
B3: Référence | C3: Nbre palettes | D3: Quantité (colis) | E3: Traçabilité
B4: CEA 250x12 ZR | C4: 2 | D4: =IF(B4="","",C4*VLOOKUP(DétailsFacture7[[#This Row],[Référence]],Matrice!A:B,2,FALSE)) -> 256 | E4: 16629102
B5: CEA 200x20 0,99€ | C5: 12 | D5: =IF(B5="","",C5*VLOOKUP(DétailsFacture7[[#This Row],[Référence]],Matrice!A:B,2,FALSE)) -> 1296 | E5: 16629208
B6: CEA Panaché 250x12 PDP | C6: 1 | D6: =IF(B6="","",C6*VLOOKUP(DétailsFacture7[[#This Row],[Référence]],Matrice!A:B,2,FALSE)) -> 128 | E6: 16629105
B7: CEA 500x10 ZR | C7: 5 | D7: =IF(B7="","",C7*VLOOKUP(DétailsFacture7[[#This Row],[Référence]],Matrice!A:B,2,FALSE)) -> 360 | E7: 16629102
B8: CEA 1kg compléxé | C8: 4 | D8: =IF(B8="","",C8*VLOOKUP(DétailsFacture7[[#This Row],[Référence]],Matrice!A:B,2,FALSE)) -> 1600 | E8: 16629102
B9: CEA 1kg compléxé LIDL | C9: 2 | D9: =IF(B9="","",C9*VLOOKUP(DétailsFacture7[[#This Row],[Référence]],Matrice!A:B,2,FALSE)) -> 960 | E9: 16629202
B10: GRP RGL Extra 10kg 1/2 coupe | C10: 4 | D10: =IF(B10="","",C10*VLOOKUP(DétailsFacture7[[#This Row],[Référence]],Matrice!A:B,2,FALSE)) -> 224 | E10: 16629320
B11: GRP RGL Extra 10kg | C11: 12 | D11: =IF(B11="","",C11*VLOOKUP(DétailsFacture7[[#This Row],[Référence]],Matrice!A:B,2,FALSE)) -> 672 | E11: 16629320
B12: CER Mélangées 350x10 ZR 2€50 | C12: 4 | D12: =IF(B12="","",C12*VLOOKUP(DétailsFacture7[[#This Row],[Référence]],Matrice!A:B,2,FALSE)) -> 288 | E12: 16629106
B13: CER Mélangées 1kg compléxé LIDL | C13: 3 | D13: =IF(B13="","",C13*VLOOKUP(DétailsFacture7[[#This Row],[Référence]],Matrice!A:B,2,FALSE)) -> 1440 | E13: 16629106
B14: CER Mélangées 1kg compléxé | C14: 2 | D14: =IF(B14="","",C14*VLOOKUP(DétailsFacture7[[#This Row],[Référence]],Matrice!A:B,2,FALSE)) -> 800 | E14: 16629106
B15: CER 4Kg Industrie 20-30 mm | C15: 1 | D15: =IF(B15="","",C15*VLOOKUP(DétailsFacture7[[#This Row],[Référence]],Matrice!A:B,2,FALSE)) -> 144 | E15: 16629301
D16: =IF(B16="","",C16*VLOOKUP(DétailsFacture7[[#This Row],[Référence]],Matrice!A:B,2,FALSE)) -> 
D17: =IF(B17="","",C17*VLOOKUP(DétailsFacture7[[#This Row],[Référence]],Matrice!A:B,2,FALSE)) -> 
D18: =IF(B18="","",C18*VLOOKUP(DétailsFacture7[[#This Row],[Référence]],Matrice!A:B,2,FALSE)) -> 
D19: =IF(B19="","",C19*VLOOKUP(DétailsFacture7[[#This Row],[Référence]],Matrice!A:B,2,FALSE)) -> 
D20: =IF(B20="","",C20*VLOOKUP(DétailsFacture7[[#This Row],[Référence]],Matrice!A:B,2,FALSE)) -> 
D21: =IF(B21="","",C21*VLOOKUP(DétailsFacture7[[#This Row],[Référence]],Matrice!A:B,2,FALSE)) -> 
D22: =IF(B22="","",C22*VLOOKUP(DétailsFacture7[[#This Row],[Référence]],Matrice!A:B,2,FALSE)) -> 
D23: =IF(B23="","",C23*VLOOKUP(DétailsFacture7[[#This Row],[Référence]],Matrice!A:B,2,FALSE)) -> 
D24: =IF(B24="","",C24*VLOOKUP(DétailsFacture7[[#This Row],[Référence]],Matrice!A:B,2,FALSE)) -> 
D25: =IF(B25="","",C25*VLOOKUP(DétailsFacture7[[#This Row],[Référence]],Matrice!A:B,2,FALSE)) -> 
D26: =IF(B26="","",C26*VLOOKUP(DétailsFacture7[[#This Row],[Référence]],Matrice!A:B,2,FALSE)) -> 
D27: =IF(B27="","",C27*VLOOKUP(DétailsFacture7[[#This Row],[Référence]],Matrice!A:B,2,FALSE)) -> 
D28: =IF(B28="","",C28*VLOOKUP(DétailsFacture7[[#This Row],[Référence]],Matrice!A:B,2,FALSE)) -> 
D29: =IF(B29="","",C29*VLOOKUP(DétailsFacture7[[#This Row],[Référence]],Matrice!A:B,2,FALSE)) -> 
D30: =IF(B30="","",C30*VLOOKUP(DétailsFacture7[[#This Row],[Référence]],Matrice!A:B,2,FALSE)) -> 
D31: =IF(B31="","",C31*VLOOKUP(DétailsFacture7[[#This Row],[Référence]],Matrice!A:B,2,FALSE)) -> 
D32: =IF(B32="","",C32*VLOOKUP(DétailsFacture7[[#This Row],[Référence]],Matrice!A:B,2,FALSE)) -> 
D33: =IF(B33="","",C33*VLOOKUP(DétailsFacture7[[#This Row],[Référence]],Matrice!A:B,2,FALSE)) -> 
D34: =IF(B34="","",C34*VLOOKUP(DétailsFacture7[[#This Row],[Référence]],Matrice!A:B,2,FALSE)) -> 
D35: =IF(B35="","",C35*VLOOKUP(DétailsFacture7[[#This Row],[Référence]],Matrice!A:B,2,FALSE)) -> 
D36: =IF(B36="","",C36*VLOOKUP(DétailsFacture7[[#This Row],[Référence]],Matrice!A:B,2,FALSE)) -> 
D37: =IF(B37="","",C37*VLOOKUP(DétailsFacture7[[#This Row],[Référence]],Matrice!A:B,2,FALSE)) -> 
D38: =IF(B38="","",C38*VLOOKUP(DétailsFacture7[[#This Row],[Référence]],Matrice!A:B,2,FALSE)) -> 
D39: =IF(B39="","",C39*VLOOKUP(DétailsFacture7[[#This Row],[Référence]],Matrice!A:B,2,FALSE)) -> 
D40: =IF(B40="","",C40*VLOOKUP(DétailsFacture7[[#This Row],[Référence]],Matrice!A:B,2,FALSE)) -> 
D41: =IF(B41="","",C41*VLOOKUP(DétailsFacture7[[#This Row],[Référence]],Matrice!A:B,2,FALSE)) -> 
D42: =IF(B42="","",C42*VLOOKUP(DétailsFacture7[[#This Row],[Référence]],Matrice!A:B,2,FALSE)) -> 
D43: =IF(B43="","",C43*VLOOKUP(DétailsFacture7[[#This Row],[Référence]],Matrice!A:B,2,FALSE)) -> 
D44: =IF(B44="","",C44*VLOOKUP(DétailsFacture7[[#This Row],[Référence]],Matrice!A:B,2,FALSE)) -> 
D45: =IF(B45="","",C45*VLOOKUP(DétailsFacture7[[#This Row],[Référence]],Matrice!A:B,2,FALSE)) -> 
D46: =IF(B46="","",C46*VLOOKUP(DétailsFacture7[[#This Row],[Référence]],Matrice!A:B,2,FALSE)) -> 
D47: =IF(B47="","",C47*VLOOKUP(DétailsFacture7[[#This Row],[Référence]],Matrice!A:B,2,FALSE)) -> 
D48: =IF(B48="","",C48*VLOOKUP(DétailsFacture7[[#This Row],[Référence]],Matrice!A:B,2,FALSE)) -> 
D49: =IF(B49="","",C49*VLOOKUP(DétailsFacture7[[#This Row],[Référence]],Matrice!A:B,2,FALSE)) -> 
D50: =IF(B50="","",C50*VLOOKUP(DétailsFacture7[[#This Row],[Référence]],Matrice!A:B,2,FALSE)) -> 
D51: =IF(B51="","",C51*VLOOKUP(DétailsFacture7[[#This Row],[Référence]],Matrice!A:B,2,FALSE)) -> 
D52: =IF(B52="","",C52*VLOOKUP(DétailsFacture7[[#This Row],[Référence]],Matrice!A:B,2,FALSE)) -> 
D53: =IF(B53="","",C53*VLOOKUP(DétailsFacture7[[#This Row],[Référence]],Matrice!A:B,2,FALSE)) -> 
D54: =IF(B54="","",C54*VLOOKUP(DétailsFacture7[[#This Row],[Référence]],Matrice!A:B,2,FALSE)) -> 
D55: =IF(B55="","",C55*VLOOKUP(DétailsFacture7[[#This Row],[Référence]],Matrice!A:B,2,FALSE)) -> 
D56: =IF(B56="","",C56*VLOOKUP(DétailsFacture7[[#This Row],[Référence]],Matrice!A:B,2,FALSE)) -> 
D57: =IF(B57="","",C57*VLOOKUP(DétailsFacture7[[#This Row],[Référence]],Matrice!A:B,2,FALSE)) -> 
D58: =IF(B58="","",C58*VLOOKUP(DétailsFacture7[[#This Row],[Référence]],Matrice!A:B,2,FALSE)) -> 
D59: =IF(B59="","",C59*VLOOKUP(DétailsFacture7[[#This Row],[Référence]],Matrice!A:B,2,FALSE)) -> 
D60: =IF(B60="","",C60*VLOOKUP(DétailsFacture7[[#This Row],[Référence]],Matrice!A:B,2,FALSE)) -> 
D61: =IF(B61="","",C61*VLOOKUP(DétailsFacture7[[#This Row],[Référence]],Matrice!A:B,2,FALSE)) -> 
D62: =IF(B62="","",C62*VLOOKUP(DétailsFacture7[[#This Row],[Référence]],Matrice!A:B,2,FALSE)) -> 
D63: =IF(B63="","",C63*VLOOKUP(DétailsFacture7[[#This Row],[Référence]],Matrice!A:B,2,FALSE)) -> 
D64: =IF(B64="","",C64*VLOOKUP(DétailsFacture7[[#This Row],[Référence]],Matrice!A:B,2,FALSE)) -> 
D65: =IF(B65="","",C65*VLOOKUP(DétailsFacture7[[#This Row],[Référence]],Matrice!A:B,2,FALSE)) -> 
D66: =IF(B66="","",C66*VLOOKUP(DétailsFacture7[[#This Row],[Référence]],Matrice!A:B,2,FALSE)) -> 
D67: =IF(B67="","",C67*VLOOKUP(DétailsFacture7[[#This Row],[Référence]],Matrice!A:B,2,FALSE)) -> 
D68: =IF(B68="","",C68*VLOOKUP(DétailsFacture7[[#This Row],[Référence]],Matrice!A:B,2,FALSE)) -> 
D69: =IF(B69="","",C69*VLOOKUP(DétailsFacture7[[#This Row],[Référence]],Matrice!A:B,2,FALSE)) -> 
D70: =IF(B70="","",C70*VLOOKUP(DétailsFacture7[[#This Row],[Référence]],Matrice!A:B,2,FALSE)) -> 
D71: =IF(B71="","",C71*VLOOKUP(DétailsFacture7[[#This Row],[Référence]],Matrice!A:B,2,FALSE)) -> 
D72: =IF(B72="","",C72*VLOOKUP(DétailsFacture7[[#This Row],[Référence]],Matrice!A:B,2,FALSE)) -> 
D73: =IF(B73="","",C73*VLOOKUP(DétailsFacture7[[#This Row],[Référence]],Matrice!A:B,2,FALSE)) -> 
D74: =IF(B74="","",C74*VLOOKUP(DétailsFacture7[[#This Row],[Référence]],Matrice!A:B,2,FALSE)) -> 
D75: =IF(B75="","",C75*VLOOKUP(DétailsFacture7[[#This Row],[Référence]],Matrice!A:B,2,FALSE)) -> 
D76: =IF(B76="","",C76*VLOOKUP(DétailsFacture7[[#This Row],[Référence]],Matrice!A:B,2,FALSE)) -> 
D77: =IF(B77="","",C77*VLOOKUP(DétailsFacture7[[#This Row],[Référence]],Matrice!A:B,2,FALSE)) -> 
D78: =IF(B78="","",C78*VLOOKUP(DétailsFacture7[[#This Row],[Référence]],Matrice!A:B,2,FALSE)) -> 
D79: =IF(B79="","",C79*VLOOKUP(DétailsFacture7[[#This Row],[Référence]],Matrice!A:B,2,FALSE)) -> 
D80: =IF(B80="","",C80*VLOOKUP(DétailsFacture7[[#This Row],[Référence]],Matrice!A:B,2,FALSE)) -> 
D81: =IF(B81="","",C81*VLOOKUP(DétailsFacture7[[#This Row],[Référence]],Matrice!A:B,2,FALSE)) -> 
D82: =IF(B82="","",C82*VLOOKUP(DétailsFacture7[[#This Row],[Référence]],Matrice!A:B,2,FALSE)) -> 
D83: =IF(B83="","",C83*VLOOKUP(DétailsFacture7[[#This Row],[Référence]],Matrice!A:B,2,FALSE)) -> 
D84: =IF(B84="","",C84*VLOOKUP(DétailsFacture7[[#This Row],[Référence]],Matrice!A:B,2,FALSE)) -> 
D85: =IF(B85="","",C85*VLOOKUP(DétailsFacture7[[#This Row],[Référence]],Matrice!A:B,2,FALSE)) -> 

Sheet 24
B2: Samedi 24 juillet
B3: Référence | C3: Nbre palettes | D3: Quantité (colis) | E3: Traçabilité
B4: CEA 250x12 ZR | C4: 2 | D4: =IF(B4="","",C4*VLOOKUP(DétailsFacture8[[#This Row],[Référence]],Matrice!A:B,2,FALSE)) -> 256 | E4: 16629102
B5: CEA 200x20 0,99€ | C5: 12 | D5: =IF(B5="","",C5*VLOOKUP(DétailsFacture8[[#This Row],[Référence]],Matrice!A:B,2,FALSE)) -> 1296 | E5: 16629208
B6: CEA Panaché 250x12 PDP | C6: 1 | D6: =IF(B6="","",C6*VLOOKUP(DétailsFacture8[[#This Row],[Référence]],Matrice!A:B,2,FALSE)) -> 128 | E6: 16629105
B7: CEA 500x10 ZR | C7: 5 | D7: =IF(B7="","",C7*VLOOKUP(DétailsFacture8[[#This Row],[Référence]],Matrice!A:B,2,FALSE)) -> 360 | E7: 16629102
B8: CEA 1kg compléxé | C8: 4 | D8: =IF(B8="","",C8*VLOOKUP(DétailsFacture8[[#This Row],[Référence]],Matrice!A:B,2,FALSE)) -> 1600 | E8: 16629102
B9: CEA 1kg compléxé LIDL | C9: 2 | D9: =IF(B9="","",C9*VLOOKUP(DétailsFacture8[[#This Row],[Référence]],Matrice!A:B,2,FALSE)) -> 960 | E9: 16629202
B10: GRP RGL Extra 10kg 1/2 coupe | C10: 4 | D10: =IF(B10="","",C10*VLOOKUP(DétailsFacture8[[#This Row],[Référence]],Matrice!A:B,2,FALSE)) -> 224 | E10: 16629320
B11: GRP RGL Extra 10kg | C11: 12 | D11: =IF(B11="","",C11*VLOOKUP(DétailsFacture8[[#This Row],[Référence]],Matrice!A:B,2,FALSE)) -> 672 | E11: 16629320
B12: CER Mélangées 350x10 ZR 2€50 | C12: 4 | D12: =IF(B12="","",C12*VLOOKUP(DétailsFacture8[[#This Row],[Référence]],Matrice!A:B,2,FALSE)) -> 288 | E12: 16629106
B13: CER Mélangées 1kg compléxé LIDL | C13: 3 | D13: =IF(B13="","",C13*VLOOKUP(DétailsFacture8[[#This Row],[Référence]],Matrice!A:B,2,FALSE)) -> 1440 | E13: 16629106
B14: CER Mélangées 1kg compléxé | C14: 2 | D14: =IF(B14="","",C14*VLOOKUP(DétailsFacture8[[#This Row],[Référence]],Matrice!A:B,2,FALSE)) -> 800 | E14: 16629106
B15: CER 4Kg Industrie 20-30 mm | C15: 1 | D15: =IF(B15="","",C15*VLOOKUP(DétailsFacture8[[#This Row],[Référence]],Matrice!A:B,2,FALSE)) -> 144 | E15: 16629301
D16: =IF(B16="","",C16*VLOOKUP(DétailsFacture8[[#This Row],[Référence]],Matrice!A:B,2,FALSE)) -> 
D17: =IF(B17="","",C17*VLOOKUP(DétailsFacture8[[#This Row],[Référence]],Matrice!A:B,2,FALSE)) -> 
D18: =IF(B18="","",C18*VLOOKUP(DétailsFacture8[[#This Row],[Référence]],Matrice!A:B,2,FALSE)) -> 
D19: =IF(B19="","",C19*VLOOKUP(DétailsFacture8[[#This Row],[Référence]],Matrice!A:B,2,FALSE)) -> 
D20: =IF(B20="","",C20*VLOOKUP(DétailsFacture8[[#This Row],[Référence]],Matrice!A:B,2,FALSE)) -> 
D21: =IF(B21="","",C21*VLOOKUP(DétailsFacture8[[#This Row],[Référence]],Matrice!A:B,2,FALSE)) -> 
D22: =IF(B22="","",C22*VLOOKUP(DétailsFacture8[[#This Row],[Référence]],Matrice!A:B,2,FALSE)) -> 
D23: =IF(B23="","",C23*VLOOKUP(DétailsFacture8[[#This Row],[Référence]],Matrice!A:B,2,FALSE)) -> 
D24: =IF(B24="","",C24*VLOOKUP(DétailsFacture8[[#This Row],[Référence]],Matrice!A:B,2,FALSE)) -> 
D25: =IF(B25="","",C25*VLOOKUP(DétailsFacture8[[#This Row],[Référence]],Matrice!A:B,2,FALSE)) -> 
D26: =IF(B26="","",C26*VLOOKUP(DétailsFacture8[[#This Row],[Référence]],Matrice!A:B,2,FALSE)) -> 
D27: =IF(B27="","",C27*VLOOKUP(DétailsFacture8[[#This Row],[Référence]],Matrice!A:B,2,FALSE)) -> 
D28: =IF(B28="","",C28*VLOOKUP(DétailsFacture8[[#This Row],[Référence]],Matrice!A:B,2,FALSE)) -> 
D29: =IF(B29="","",C29*VLOOKUP(DétailsFacture8[[#This Row],[Référence]],Matrice!A:B,2,FALSE)) -> 
D30: =IF(B30="","",C30*VLOOKUP(DétailsFacture8[[#This Row],[Référence]],Matrice!A:B,2,FALSE)) -> 
D31: =IF(B31="","",C31*VLOOKUP(DétailsFacture8[[#This Row],[Référence]],Matrice!A:B,2,FALSE)) -> 
D32: =IF(B32="","",C32*VLOOKUP(DétailsFacture8[[#This Row],[Référence]],Matrice!A:B,2,FALSE)) -> 
D33: =IF(B33="","",C33*VLOOKUP(DétailsFacture8[[#This Row],[Référence]],Matrice!A:B,2,FALSE)) -> 
D34: =IF(B34="","",C34*VLOOKUP(DétailsFacture8[[#This Row],[Référence]],Matrice!A:B,2,FALSE)) -> 
D35: =IF(B35="","",C35*VLOOKUP(DétailsFacture8[[#This Row],[Référence]],Matrice!A:B,2,FALSE)) -> 
D36: =IF(B36="","",C36*VLOOKUP(DétailsFacture8[[#This Row],[Référence]],Matrice!A:B,2,FALSE)) -> 
D37: =IF(B37="","",C37*VLOOKUP(DétailsFacture8[[#This Row],[Référence]],Matrice!A:B,2,FALSE)) -> 
D38: =IF(B38="","",C38*VLOOKUP(DétailsFacture8[[#This Row],[Référence]],Matrice!A:B,2,FALSE)) -> 
D39: =IF(B39="","",C39*VLOOKUP(DétailsFacture8[[#This Row],[Référence]],Matrice!A:B,2,FALSE)) -> 
D40: =IF(B40="","",C40*VLOOKUP(DétailsFacture8[[#This Row],[Référence]],Matrice!A:B,2,FALSE)) -> 
D41: =IF(B41="","",C41*VLOOKUP(DétailsFacture8[[#This Row],[Référence]],Matrice!A:B,2,FALSE)) -> 
D42: =IF(B42="","",C42*VLOOKUP(DétailsFacture8[[#This Row],[Référence]],Matrice!A:B,2,FALSE)) -> 
D43: =IF(B43="","",C43*VLOOKUP(DétailsFacture8[[#This Row],[Référence]],Matrice!A:B,2,FALSE)) -> 
D44: =IF(B44="","",C44*VLOOKUP(DétailsFacture8[[#This Row],[Référence]],Matrice!A:B,2,FALSE)) -> 
D45: =IF(B45="","",C45*VLOOKUP(DétailsFacture8[[#This Row],[Référence]],Matrice!A:B,2,FALSE)) -> 
D46: =IF(B46="","",C46*VLOOKUP(DétailsFacture8[[#This Row],[Référence]],Matrice!A:B,2,FALSE)) -> 
D47: =IF(B47="","",C47*VLOOKUP(DétailsFacture8[[#This Row],[Référence]],Matrice!A:B,2,FALSE)) -> 
D48: =IF(B48="","",C48*VLOOKUP(DétailsFacture8[[#This Row],[Référence]],Matrice!A:B,2,FALSE)) -> 
D49: =IF(B49="","",C49*VLOOKUP(DétailsFacture8[[#This Row],[Référence]],Matrice!A:B,2,FALSE)) -> 
D50: =IF(B50="","",C50*VLOOKUP(DétailsFacture8[[#This Row],[Référence]],Matrice!A:B,2,FALSE)) -> 
D51: =IF(B51="","",C51*VLOOKUP(DétailsFacture8[[#This Row],[Référence]],Matrice!A:B,2,FALSE)) -> 
D52: =IF(B52="","",C52*VLOOKUP(DétailsFacture8[[#This Row],[Référence]],Matrice!A:B,2,FALSE)) -> 
D53: =IF(B53="","",C53*VLOOKUP(DétailsFacture8[[#This Row],[Référence]],Matrice!A:B,2,FALSE)) -> 
D54: =IF(B54="","",C54*VLOOKUP(DétailsFacture8[[#This Row],[Référence]],Matrice!A:B,2,FALSE)) -> 
D55: =IF(B55="","",C55*VLOOKUP(DétailsFacture8[[#This Row],[Référence]],Matrice!A:B,2,FALSE)) -> 
D56: =IF(B56="","",C56*VLOOKUP(DétailsFacture8[[#This Row],[Référence]],Matrice!A:B,2,FALSE)) -> 
D57: =IF(B57="","",C57*VLOOKUP(DétailsFacture8[[#This Row],[Référence]],Matrice!A:B,2,FALSE)) -> 
D58: =IF(B58="","",C58*VLOOKUP(DétailsFacture8[[#This Row],[Référence]],Matrice!A:B,2,FALSE)) -> 
D59: =IF(B59="","",C59*VLOOKUP(DétailsFacture8[[#This Row],[Référence]],Matrice!A:B,2,FALSE)) -> 
D60: =IF(B60="","",C60*VLOOKUP(DétailsFacture8[[#This Row],[Référence]],Matrice!A:B,2,FALSE)) -> 
D61: =IF(B61="","",C61*VLOOKUP(DétailsFacture8[[#This Row],[Référence]],Matrice!A:B,2,FALSE)) -> 
D62: =IF(B62="","",C62*VLOOKUP(DétailsFacture8[[#This Row],[Référence]],Matrice!A:B,2,FALSE)) -> 
D63: =IF(B63="","",C63*VLOOKUP(DétailsFacture8[[#This Row],[Référence]],Matrice!A:B,2,FALSE)) -> 
D64: =IF(B64="","",C64*VLOOKUP(DétailsFacture8[[#This Row],[Référence]],Matrice!A:B,2,FALSE)) -> 
D65: =IF(B65="","",C65*VLOOKUP(DétailsFacture8[[#This Row],[Référence]],Matrice!A:B,2,FALSE)) -> 
D66: =IF(B66="","",C66*VLOOKUP(DétailsFacture8[[#This Row],[Référence]],Matrice!A:B,2,FALSE)) -> 
D67: =IF(B67="","",C67*VLOOKUP(DétailsFacture8[[#This Row],[Référence]],Matrice!A:B,2,FALSE)) -> 
D68: =IF(B68="","",C68*VLOOKUP(DétailsFacture8[[#This Row],[Référence]],Matrice!A:B,2,FALSE)) -> 
D69: =IF(B69="","",C69*VLOOKUP(DétailsFacture8[[#This Row],[Référence]],Matrice!A:B,2,FALSE)) -> 
D70: =IF(B70="","",C70*VLOOKUP(DétailsFacture8[[#This Row],[Référence]],Matrice!A:B,2,FALSE)) -> 
D71: =IF(B71="","",C71*VLOOKUP(DétailsFacture8[[#This Row],[Référence]],Matrice!A:B,2,FALSE)) -> 
D72: =IF(B72="","",C72*VLOOKUP(DétailsFacture8[[#This Row],[Référence]],Matrice!A:B,2,FALSE)) -> 
D73: =IF(B73="","",C73*VLOOKUP(DétailsFacture8[[#This Row],[Référence]],Matrice!A:B,2,FALSE)) -> 
D74: =IF(B74="","",C74*VLOOKUP(DétailsFacture8[[#This Row],[Référence]],Matrice!A:B,2,FALSE)) -> 
D75: =IF(B75="","",C75*VLOOKUP(DétailsFacture8[[#This Row],[Référence]],Matrice!A:B,2,FALSE)) -> 
D76: =IF(B76="","",C76*VLOOKUP(DétailsFacture8[[#This Row],[Référence]],Matrice!A:B,2,FALSE)) -> 
D77: =IF(B77="","",C77*VLOOKUP(DétailsFacture8[[#This Row],[Référence]],Matrice!A:B,2,FALSE)) -> 
D78: =IF(B78="","",C78*VLOOKUP(DétailsFacture8[[#This Row],[Référence]],Matrice!A:B,2,FALSE)) -> 
D79: =IF(B79="","",C79*VLOOKUP(DétailsFacture8[[#This Row],[Référence]],Matrice!A:B,2,FALSE)) -> 
D80: =IF(B80="","",C80*VLOOKUP(DétailsFacture8[[#This Row],[Référence]],Matrice!A:B,2,FALSE)) -> 
D81: =IF(B81="","",C81*VLOOKUP(DétailsFacture8[[#This Row],[Référence]],Matrice!A:B,2,FALSE)) -> 
D82: =IF(B82="","",C82*VLOOKUP(DétailsFacture8[[#This Row],[Référence]],Matrice!A:B,2,FALSE)) -> 
D83: =IF(B83="","",C83*VLOOKUP(DétailsFacture8[[#This Row],[Référence]],Matrice!A:B,2,FALSE)) -> 
D84: =IF(B84="","",C84*VLOOKUP(DétailsFacture8[[#This Row],[Référence]],Matrice!A:B,2,FALSE)) -> 
D85: =IF(B85="","",C85*VLOOKUP(DétailsFacture8[[#This Row],[Référence]],Matrice!A:B,2,FALSE)) -> 

Sheet Matrice
A1: CEA 250x12 | B1: 128
A2: CEA 250x12 ZR | B2: 128
A3: CEA 250x12 LIDL | B3: 128
A4: CEA 250x12 1€50 | B4: 128
A5: CEA Panaché 250x12 | B5: 128
A6: CEA Panaché 250x12 PDP | B6: 128
A7: CEA 500x10 | B7: 72
A8: CEA 500x10 ZR | B8: 72
A9: CER 250x12 | B9: 128
A10: CER 250X12 LIDL | B10: 128
A11: CER 250x12 ZR | B11: 128
A12: CER 400x10 | B12: 72
A13: CER 400x10 2€ | B13: 72
A14: CER 500x10 | B14: 72
A15: CER 500X10 LIDL | B15: 72
A16: CER 500x10 ZR | B16: 72
A17: CER Mélangées 350x10 | B17: 72
A18: CER Mélangées 350x10 ZR | B18: 70
A19: CER Mélangées 350x10 ZR 2€50 | B19: 72
A20: CER Mélangées 350x10 ZR 2€50 +20% | B20: 72
A21: CER Mélangées 350x10 LIDL | B21: 72
A22: CER Mélangées 350x10 ZR LIDL | B22: 72
A23: CEA 200x20 0,99€ | B23: 108
A24: CER 200x20 0,99€ | B24: 108
A25: CER 200x20 MMP | B25: 108
A26: CER 200x20 ECO+ | B26: 108
A27: CER 1kg compléxé | B27: 400
A28: CER 1kg compléxé LIDL | B28: 400
A29: CER 4kg | B29: 144
A30: CER 4kg compléxé | B30: 144
A31: CEA 1kg compléxé | B31: 400
A32: CEA 1kg compléxé LIDL | B32: 480
A33: CEA 4kg | B33: 144
A34: CEA 4kg compléxé | B34: 144
A35: CER Mélangées 1kg compléxé | B35: 400
A36: CER Mélangées 1kg compléxé LIDL | B36: 480
A37: CER Mélangées 4kg | B37: 144
A38: CER Mélangées 4Kg compléxé | B38: 144
A39: CER Mélangées 4kg compléxé ZR | B39: 144
A40: CAO 1kg compléxé LIDL | B40: 480
A41: CAO 4kg Extra | B41: 144
A42: CAO 4 kg compléxé | B42: 144
A43: CEJ 4kg Extra | B43: 144
A44: GRP 5Kg Compléxée | B44: 112
A45: GRP RGL Extra 10kg | B45: 56
A46: GRP RGL Extra 10kg 1/2 coupe | B46: 56
A47: GRP 14 pièces | B47: 56
A48: GRP 10kg Ecoserre | B48: 56
A49: GRP 10KG LIDL | B49: 56
A50: CER 4Kg Industrie 20-30 mm | B50: 144
A51: CER 4Kg Industrie 23-27 mm | B51: 144
